fUSD/lending_fUSD_20241219
["ID","MTS","AMOUNT","RATE_DAILY","PERIOD"]
[345986159,1734601850940,-203.0,0.0002458,2]
[345986160,1734601850950,-150.0,0.00024583,2]
[345986161,1734601850961,-300.0,0.00024587,2]
[345986162,1734601850971,-300.0,0.00024587,2]
[345986163,1734601850981,-5000.0,0.00024588,2]
[345986164,1734601850990,-150.0,0.0002459,2]
[345986165,1734601851001,-150.0,0.00024592,2]
[345986166,1734601851010,-502.39062539,0.00024592,2]
[345986167,1734601851021,-1500.0,0.00024593,2]
[345986168,1734601851031,-1500.0,0.00024597,2]
[345986169,1734601851041,-2000.0,0.00024599,2]
[345986170,1734601851051,-2000.0,0.00024599,2]
[345986171,1734601851060,-200.0,0.000246,8]
[345986172,1734601851069,-1000.0,0.000246,2]
[345986173,1734601851079,-154.0,0.00024603,2]
[345986174,1734601851089,-154.0,0.00024603,2]
[345986175,1734601851101,-154.0,0.00024603,2]
[345986176,1734601851111,-154.0,0.00024603,2]
[345986177,1734601851124,-178.15,0.00024603,2]
[345986178,1734601851134,-150.0,0.00024608,2]
[345986179,1734601851143,-250.0,0.00024622,2]
[345986180,1734601851153,-2398.77604401,0.00024625,2]
[345986181,1734601851162,-300.0,0.00024629,2]
[345986182,1734601851171,-12828.0,0.0002463,2]
[345986183,1734601851180,-150.0,0.00024642,2]
[345986184,1734601851190,-300.0,0.00024653,2]
[345986185,1734601851199,-300.0,0.00024654,2]
[345986186,1734601851209,-150.0,0.00024654,2]
[345986187,1734601851219,-1000.0,0.00024654,2]
[345986188,1734601851229,-580.96,0.00024654,2]
[345986189,1734601851239,-433.03916992,0.00024654,4]
[345986190,1734601851250,-500.0,0.00024654,4]
[345986191,1734601851262,-500.0,0.00024654,4]
[345986192,1734601851272,-500.0,0.00024654,4]
[345986193,1734601851282,-500.0,0.00024654,4]
[345986194,1734601851291,-500.0,0.00024654,4]
[345986195,1734601851300,-500.0,0.00024654,4]
[345986196,1734601851309,-500.0,0.00024654,4]
[345986197,1734601851319,-500.0,0.00024654,4]
[345986198,1734601851328,-500.0,0.00024654,4]
[345986199,1734601851338,-683.4,0.00024654,4]
[345986200,1734601851348,-500.0,0.00024654,4]
[345986201,1734601851358,-1242.62,0.00024654,4]
[345986202,1734601851368,-511.27,0.00024654,4]
[345986203,1734601851378,-1626.52,0.00024654,4]
[345986204,1734601851388,-500.0,0.00024654,4]
[345986205,1734601851398,-500.0,0.00024654,4]
[345986206,1734601851409,-500.0,0.00024654,4]
[345986207,1734601851418,-195564.75007553,0.00024655,2]
[345986208,1734601851430,-300.0,0.00024656,2]
[345986209,1734601851440,-24140.49770415,0.00024657,3]
[345986210,1734601851450,-500.0,0.00024657,4]
[345986211,1734601851460,-500.0,0.00024657,4]
[345986212,1734601851470,-532.29,0.00024657,4]
[345986213,1734601851481,-772.39,0.00024657,4]
[345986214,1734601851491,-500.0,0.00024657,4]
[345986215,1734601851501,-500.0,0.00024657,4]
[345986216,1734601851511,-500.0,0.00024657,4]
[345986217,1734601851521,-496.69,0.00024658,2]
[345986218,1734601851531,-1000.0,0.00024658,2]
[345986219,1734601851542,-150.0,0.00024658,2]
[345986220,1734601851692,-150.0,0.00024662,2]
[345986221,1734601851702,-150.0,0.00024668,2]
[345986222,1734601851711,-2434.97,0.00024675,2]
[345986223,1734601851721,-300.0,0.00024679,10]
[345986224,1734601851731,-4557.10433761,0.0002468,7]
[345986225,1734601851740,-150.0,0.00024697,2]
[345986226,1734601851749,-325.0,0.000247,2]
[345986227,1734601851759,-200.0,0.000247,2]
[345986228,1734601851768,-3000.0,0.000247,2]
[345986229,1734601851777,-184.11129134,0.000247,2]
[345986230,1734601851787,-200.0,0.000247,9]
[345986231,1734601851796,-150.0,0.00024702,2]
[345986232,1734601851805,-500.0,0.00024707,2]
[345986233,1734601851814,-513.51,0.00024707,2]
[345986234,1734601851823,-150.0,0.00024709,2]
[345986235,1734601851832,-171.87138211,0.00024711,2]
[345986236,1734601851842,-150.0,0.00024714,2]
[345986237,1734601851851,-150.0,0.00024715,2]
[345986238,1734601851860,-150.0,0.00024717,2]
[345986239,1734601851869,-150.0,0.00024722,2]
[345986240,1734601851879,-2515.49,0.00024726,2]
[345986241,1734601851888,-1681.76,0.00024729,2]
[345986242,1734601851897,-485.13230271,0.00024733,2]
[345986243,1734601851907,-150.0,0.00024738,2]
[345986244,1734601851917,-1500.0,0.0002474,2]
[345986245,1734601851927,-150.0,0.00024747,2]
[345986246,1734601851937,-1500.0,0.00024747,2]
[345986247,1734601851947,-2505.92,0.0002475,2]
[345986248,1734601851956,-1406.0,0.0002475,2]
[345986249,1734601851965,-150.0,0.00024758,2]
[345986250,1734601851975,-150.0,0.00024763,2]
[345986251,1734601851984,-500.0,0.00024765,4]
[345986252,1734601851994,-859.67,0.00024765,4]
[345986253,1734601852003,-242.13003229,0.00024765,4]
[345986254,1734601852013,-636.77,0.00024765,4]
[345986255,1734601852022,-500.0,0.00024765,4]
[345986256,1734601852032,-500.0,0.00024765,4]
[345986257,1734601852042,-500.0,0.00024765,4]
[345986258,1734601852051,-500.0,0.00024765,4]
[345986259,1734601852061,-1000.0,0.00024765,2]
[345986260,1734601852071,-150.0,0.00024776,2]
[345986261,1734601852080,-586.17,0.00024781,7]
[345986262,1734601852089,-586.17,0.00024781,7]
[345986263,1734601852098,-1303.82,0.00024789,2]
[345986264,1734601852108,-286.93894689,0.0002479,2]
[345986265,1734601852118,-300.0,0.00024792,10]
[345986266,1734601852127,-5000.0,0.00024793,2]
[345986267,1734601852137,-1500.0,0.00024794,2]
[345986268,1734601852146,-2999.99,0.00024799,2]
[345986269,1734601852156,-1000.0,0.00024799,2]
[345986270,1734601852165,-621.61,0.00024799,2]
[345986271,1734601852175,-147964.3693649,0.000248,3]
[345986272,1734601852184,-771861.45280328,0.000248,2]
[345986273,1734601852194,-800.0,0.000248,9]
[345986274,1734601852203,-2999.99,0.00024802,2]
[345986275,1734601852213,-150.0,0.00024805,2]
[345986276,1734601852224,-150.0,0.00024808,2]
[345986277,1734601852233,-1500.0,0.00024808,2]
[345986278,1734601852242,-1500.0,0.00024816,2]
[345986279,1734601852253,-3000.0,0.00024819,2]
[345986280,1734601852264,-1500.0,0.00024822,2]
[345986281,1734601852275,-150.0,0.00024841,2]
[345986282,1734601852285,-1500.0,0.00024842,2]
[345986283,1734601852295,-150.0,0.00024843,2]
[345986284,1734601852306,-156.0,0.00024853,2]
[345986285,1734601852316,-156.0,0.00024853,2]
[345986286,1734601852326,-188.0,0.00024853,2]
[345986287,1734601852335,-150.0,0.00024854,2]
[345986288,1734601852345,-1500.0,0.00024854,2]
[345986289,1734601852355,-150.0,0.00024857,2]
[345986290,1734601852365,-150.0,0.00024858,2]
[345986291,1734601852377,-150.0,0.00024864,2]
[345986292,1734601852388,-2505.45,0.00024869,2]
[345986293,1734601852399,-153.14358359,0.00024871,2]
[345986294,1734601852411,-800.0,0.00024877,2]
[345986295,1734601852421,-800.0,0.00024877,2]
[345986296,1734601852430,-800.0,0.00024877,2]
[345986297,1734601852439,-150.0,0.00024889,2]
[345986298,1734601852449,-467.98832746,0.00024895,2]
[345986299,1734601852458,-500.0,0.00024897,2]
[345986300,1734601852468,-500.0,0.00024897,2]
[345986301,1734601852478,-500.0,0.00024897,2]
[345986302,1734601852487,-500.0,0.00024897,2]
[345986303,1734601852496,-500.0,0.00024897,2]
[345986304,1734601852506,-500.0,0.00024897,2]
[345986305,1734601852516,-500.0,0.00024897,2]
[345986306,1734601852525,-500.0,0.00024897,2]
[345986307,1734601852535,-500.0,0.00024897,2]
[345986308,1734601852544,-500.0,0.00024897,2]
[345986309,1734601852554,-500.0,0.00024897,2]
[345986310,1734601852563,-500.0,0.00024897,2]
[345986311,1734601852574,-500.0,0.00024897,2]
[345986312,1734601852583,-500.0,0.00024897,2]
[345986313,1734601852594,-500.0,0.00024897,2]
[345986314,1734601852603,-467.98832746,0.00024898,2]
[345986315,1734601852613,-4000.413038,0.00024899,2]
[345986316,1734601852622,-1266.93689123,0.000249,2]
[345986317,1734601852631,-5800.0,0.000249,2]
[345986318,1734601852642,-67239.65521223,0.000249,2]
[345986319,1734601852653,-5800.0,0.000249,2]
[345986320,1734601852663,-171.87138211,0.000249,2]
[345986321,1734601852672,-1559.03,0.000249,31]
[345986322,1734601852682,-1559.03,0.000249,31]
[345986323,1734601852693,-1559.03,0.000249,31]
[345986324,1734601852703,-1559.03,0.000249,31]
[345986325,1734601852713,-1559.03,0.000249,31]
[345986326,1734601852724,-1559.03,0.000249,31]
[345986327,1734601852734,-1559.03,0.000249,31]
[345986328,1734601852743,-1559.03,0.000249,31]
[345986329,1734601852753,-1559.03,0.000249,31]
[345986330,1734601852763,-1559.03,0.000249,31]
[345986331,1734601852773,-1559.03,0.000249,31]
[345986332,1734601852783,-1559.03,0.000249,31]
[345986333,1734601852792,-1559.03,0.000249,31]
[345986334,1734601852802,-1559.03,0.000249,31]
[345986335,1734601852812,-1559.03,0.000249,31]
[345986336,1734601852821,-1559.03,0.000249,31]
[345986337,1734601852831,-485.13230271,0.000249,2]
[345986338,1734601852841,-3804.47014682,0.000249,2]
[345986339,1734601852850,-113034.49700494,0.000249,2]
[345986340,1734601852859,-1061.19649855,0.000249,2]
[345986341,1734601852869,-1061.19649855,0.000249,2]
[345986342,1734601852879,-1061.19649855,0.000249,2]
[345986343,1734601852888,-1061.19649855,0.000249,2]
[345986344,1734601852898,-467.98832746,0.000249,2]
[345986345,1734601852907,-310.70960865,0.000249,2]
[345986346,1734601852918,-15717.54143797,0.000249,2]
[345986347,1734601852928,-150.0,0.00024901,2]
[345986348,1734601852938,-1500.0,0.00024902,2]
[345986349,1734601852947,-150.0,0.00024903,2]
[345986350,1734601852957,-150.0,0.00024912,2]
[345986351,1734601852968,-150.0,0.00024913,2]
[345986352,1734601852979,-150.0,0.00024913,2]
[345986353,1734601852990,-150.0,0.00024923,2]
[345986354,1734601853000,-580.96,0.00024928,2]
[345986355,1734601853011,-394.24,0.00024928,4]
[345986356,1734601853023,-500.0,0.00024928,4]
[345986357,1734601853034,-500.0,0.00024928,4]
[345986358,1734601853043,-500.0,0.00024928,4]
[345986359,1734601853054,-500.0,0.00024928,4]
[345986360,1734601853063,-500.0,0.00024928,4]
[345986361,1734601853073,-500.0,0.00024928,4]
[345986362,1734601853082,-500.0,0.00024928,4]
[345986363,1734601853091,-500.0,0.00024928,4]
[345986364,1734601853101,-683.4,0.00024928,4]
[345986365,1734601853111,-151.85931499,0.00024928,4]
[345986366,1734601853121,-1242.62,0.00024928,4]
[345986367,1734601853131,-511.27,0.00024928,4]
[345986368,1734601853142,-1626.52,0.00024928,4]
[345986369,1734601853151,-500.0,0.00024928,4]
[345986370,1734601853161,-500.0,0.00024928,4]
[345986371,1734601853170,-500.0,0.00024928,4]
[345986372,1734601853180,-500.0,0.00024931,4]
[345986373,1734601853190,-500.0,0.00024931,4]
[345986374,1734601853199,-532.29,0.00024931,4]
[345986375,1734601853210,-772.39,0.00024931,4]
[345986376,1734601853219,-500.0,0.00024931,4]
[345986377,1734601853229,-500.0,0.00024931,4]
[345986378,1734601853240,-500.0,0.00024931,4]
[345986379,1734601853250,-621.61,0.00024936,2]
[345986380,1734601853262,-156.0,0.0002494,2]
[345986381,1734601853271,-156.0,0.0002494,2]
[345986382,1734601853280,-189.2,0.0002494,2]
[345986383,1734601853289,-156.0,0.0002494,2]
[345986384,1734601853299,-156.0,0.0002494,2]
[345986385,1734601853308,-156.0,0.0002494,2]
[345986386,1734601853317,-156.0,0.0002494,2]
[345986387,1734601853326,-156.0,0.0002494,2]
[345986388,1734601853335,-156.0,0.0002494,2]
[345986389,1734601853345,-156.0,0.0002494,2]
[345986390,1734601853354,-156.0,0.0002494,2]
[345986391,1734601853365,-156.0,0.0002494,2]
[345986392,1734601853375,-156.0,0.0002494,2]
[345986393,1734601853385,-156.0,0.0002494,2]
[345986394,1734601853395,-295.17,0.0002494,2]
[345986395,1734601853404,-150.0,0.00024942,2]
[345986396,1734601853415,-150.0,0.00024944,2]
[345986397,1734601853425,-150.0,0.00024953,2]
[345986398,1734601853437,-1000.0,0.00024958,2]
[345986399,1734601853445,-2658.0,0.00024959,2]
[345986400,1734601853455,-3980.0,0.00024959,2]
[345986401,1734601853464,-26924.0,0.00024959,2]
[345986402,1734601853473,-20103.0,0.00024959,2]
[345986403,1734601853482,-400.0,0.0002497,2]
[345986404,1734601853492,-400.0,0.0002497,2]
[345986405,1734601853501,-680.28701443,0.0002497,2]
[345986406,1734601853511,-300.0,0.0002497,2]
[345986407,1734601853520,-583.73875566,0.0002497,2]
[345986408,1734601853530,-73734.84789292,0.0002498,2]
[345986409,1734601853540,-64966.07777169,0.0002498,2]
[345986410,1734601853549,-150.0,0.0002498,2]
[345986411,1734601853558,-500.0,0.00024981,2]
[345986412,1734601853568,-513.51,0.00024981,2]
[345986413,1734601853577,-6734.8595917,0.00024983,2]
[345986414,1734601853586,-6224.8021499,0.00024983,2]
[345986415,1734601853595,-5714.7447081,0.00024983,2]
[345986416,1734601853604,-5204.6872664,0.00024983,2]
[345986417,1734601853614,-4694.6298246,0.00024983,2]
[345986418,1734601853624,-10144.557645,0.00024983,2]
[345986419,1734601853635,-9376.2703407,0.00024983,2]
[345986420,1734601853645,-8607.9830364,0.00024983,2]
[345986421,1734601853655,-7839.6957321,0.00024983,2]
[345986422,1734601853664,-7071.4084279,0.00024983,2]
[345986423,1734601853674,-28232.94013914,0.00024993,4]
[345986424,1734601853684,-150.0,0.00024993,2]
[345986425,1734601853693,-1000.0,0.00024994,2]
[345986426,1734601853703,-32296.8722988,0.00024995,2]
[345986427,1734601853713,-30397.1859173,0.00024995,2]
[345986428,1734601853722,-28497.4995357,0.00024995,2]
[345986429,1734601853731,-26597.8131542,0.00024995,2]
[345986430,1734601853741,-24698.1267726,0.00024995,2]
[345986431,1734601853750,-22798.4403911,0.00024995,2]
[345986432,1734601853759,-2684.0661126,0.00024995,2]
[345986433,1734601853769,-2526.1906442,0.00024995,2]
[345986434,1734601853778,-2368.3151758,0.00024995,2]
[345986435,1734601853787,-2210.4397075,0.00024995,2]
[345986436,1734601853796,-2052.5642391,0.00024995,2]
[345986437,1734601853804,-1894.6887707,0.00024995,2]
[345986438,1734601853814,-150.121918,0.00024996,4]
[345986439,1734601853824,-150.121918,0.00024996,5]
[345986440,1734601853834,-222.121918,0.00024996,6]
[345986441,1734601853844,-155.121918,0.00024996,7]
[345986442,1734601853853,-150.0,0.00024996,2]
[345986443,1734601853862,-333.121918,0.00024997,15]
[345986444,1734601853871,-333.121918,0.00024997,14]
[345986445,1734601853880,-333.121918,0.00024997,13]
[345986446,1734601853889,-333.121918,0.00024997,12]
[345986447,1734601853898,-333.121918,0.00024997,11]
[345986448,1734601853908,-333.121918,0.00024997,8]
[345986449,1734601853920,-333.121918,0.00024997,7]
[345986450,1734601853929,-333.121918,0.00024997,6]
[345986451,1734601853939,-333.121918,0.00024997,5]
[345986452,1734601853948,-333.121918,0.00024997,4]
[345986453,1734601853957,-5000.0,0.00024998,3]
[345986454,1734601853967,-777.121918,0.00024998,4]
[345986455,1734601854012,-777.121918,0.00024998,5]
[345986456,1734601854022,-777.121918,0.00024998,6]
[345986457,1734601854031,-777.121918,0.00024998,7]
[345986458,1734601854040,-777.121918,0.00024998,8]
[345986459,1734601854050,-777.121918,0.00024998,11]
[345986460,1734601854059,-777.121918,0.00024998,12]
[345986461,1734601854068,-777.121918,0.00024998,13]
[345986462,1734601854077,-777.121918,0.00024998,14]
[345986463,1734601854086,-777.121918,0.00024998,15]
[345986464,1734601854096,-1000.0,0.00024998,2]
[345986465,1734601854106,-2000.0,0.00024999,2]
[345986466,1734601854116,-2013.478,0.00024999,2]
[345986467,1734601854125,-20587.61175706,0.00024999,2]
[345986468,1734601854136,-1000.0,0.00024999,2]
[345986469,1734601854146,-2000.0,0.00024999,2]
[345986470,1734601854155,-2000.0,0.00024999,2]
[345986471,1734601854164,-2000.0,0.00024999,2]
[345986472,1734601854173,-1000.0,0.00024999,2]
[345986473,1734601854182,-23617.80812132,0.00024999,2]
[345986474,1734601854192,-1000.0,0.00024999,2]
[345986475,1734601854201,-1010.49849939,0.00024999,2]
[345986476,1734601854211,-1615.17922359,0.00025,2]
[345986477,1734601854221,-4194942.23402103,0.00025,2]
[345986478,1734601854230,-5247869.32173173,0.00025,2]
[345986479,1734601854239,-8158045.90580395,0.00025,2]
[345986480,1734601854248,-202.5,0.00025,2]
[345986481,1734601854263,-4231303.60755488,0.00025,2]
[345986482,1734601854273,-120590.73121819,0.00025,2]
[345986483,1734601854282,-2373.77074007,0.00025,30]
[345986484,1734601854291,-583.39255333,0.00025,2]
[345986485,1734601854300,-1590.41077411,0.00025,2]
[345986486,1734601854310,-254.26064623,0.00025,2]
[345986487,1734601854319,-2907.3089927,0.00025,2]
[345986488,1734601854328,-31239696.22393075,0.00025,2]
[345986489,1734601854454,-4963613.98203991,0.00025,2]
[345986490,1734601854465,-1023.79328833,0.00025,60]
[345986491,1734601854474,-1488.3204021,0.00025,60]
[345986492,1734601854483,-150.0,0.00025,60]
[345986493,1734601854493,-3639956.62426966,0.00025,2]
[345986494,1734601854504,-1816092.3185758,0.00025,2]
[345986495,1734601854515,-389559.22241092,0.00025,2]
[345986496,1734601854524,-1863291.88650908,0.00025,2]
[345986497,1734601854535,-4858.26002071,0.00025,2]
[345986498,1734601854547,-3977.33999999,0.00025,2]
[345986499,1734601854558,-571.72170112,0.00025,2]
[345986500,1734601854570,-67355.17035355,0.00025,2]
[345986501,1734601854584,-10134.35603472,0.00025,2]
[345986502,1734601854595,-1304.252071,0.00025,2]
[345986503,1734601854605,-1380.09768709,0.00025,2]
[345986504,1734601854616,-4392.95036022,0.00025,2]
[345986505,1734601854626,-963.19752,0.00025,2]
[345986506,1734601854637,-317.98769101,0.00025,2]
[345986507,1734601854648,-1010.52307472,0.00025,2]
[345986508,1734601854659,-3894.39423,0.00025,2]
[345986509,1734601854686,-515.78139108,0.00022465,4]
[345986510,1734601854695,-4108.23415856,0.00025,2]
[345986511,1734601854706,-46461.91102336,0.00025,2]
[345986512,1734601854717,-40740.28998,0.00025,2]
[345986513,1734601854727,-506344.70354858,0.00025,2]
[345986514,1734601854738,-1064804.5722422,0.00025,2]
[345986515,1734601854749,-64979.40865259,0.00025,2]
[345986516,1734601854760,-6229.36169738,0.00025,2]
[345986517,1734601854771,-51406.72548253,0.00025,2]
[345986518,1734601854782,-1034.3555,0.00025,2]
[345986519,1734601854792,-800.86626729,0.00025,2]
[345986520,1734601854803,-238750.64948289,0.00025,2]
[345986521,1734601854814,-14713.8,0.00025,2]
[345986522,1734601854825,-32308.34275911,0.00025,2]
[345986523,1734601854920,-150.0,0.00023124,2]
[345986524,1734601854931,-150.0,0.00023348,2]
[345986525,1734601854940,-150.0,0.00023504,2]
[345986526,1734601854951,-150.0,0.00023788,2]
[345986527,1734601854961,-150.0,0.00023957,2]
[345986528,1734601854971,-150.0,0.00023997,2]
[345986529,1734601854981,-150.0,0.00024493,2]
[345986530,1734601854990,-150.0,0.00024567,2]
[345986531,1734601854999,-150.0,0.00024832,2]
[345986532,1734601855009,-5607.80976091,0.00025,2]
[345986533,1734601855021,-9691.90406424,0.00025,2]
[345986534,1734601855035,-6800.0,0.00025,2]
[345986535,1734601855046,-15168.70392,0.00025,2]
[345986536,1734601855059,-22342.0908,0.00025,2]
[345986537,1734601855071,-27686.29024,0.00025,2]
[345986538,1734601855083,-16166.72813311,0.00025,2]
[345986539,1734601855095,-33939.42471689,0.00025,2]
[345986540,1734601855107,-38483.21647656,0.00025,2]
[345986541,1734601855120,-3678.6,0.00025,2]
[345986542,1734601855138,-36800.00000008,0.00025,2]
[345986543,1734601855149,-10956.6989189,0.00025,2]
[345986544,1734601855161,-522.01898272,0.00025,2]
[345986545,1734601855172,-3999.73125445,0.00025,2]
[345986546,1734601855188,-150.0,0.00022145,2]
[345986547,1734601855197,-57245.82811548,0.00025,2]
[345986548,1734601855208,-7848.01751464,0.00025,2]
[345986549,1734602093994,10848.14038165,0.0002351,120]
[345986556,1734602386192,159.4,0.00010137,2]
[345986558,1734602392630,245239.07399342,0.00018001,2]
[345986560,1734602645118,20207.0,0.0002351,90]
[345986561,1734602859378,450.0,0.00013,2]
[345986562,1734602860355,500.0,0.00015,2]
[345986563,1734602861506,550.0,0.00017,2]
[345986601,1734603032280,-600.0,0.00019,2]
[345986602,1734603032297,-419.0,0.00019799,2]
[345986603,1734603032385,-3101.22842254,0.00019799,2]
[345986604,1734603032398,-408.34246645,0.00019799,2]
[345986605,1734603032407,-91.65753355,0.00019899,2]
[345986606,1734603032424,-159.34246645,0.00019899,2]
[345986607,1734603032436,-2003.0,0.0002,2]
[345986608,1734603032446,-20000.0,0.0002,2]
[345986609,1734603032456,-500.0,0.00020068,2]
[345986610,1734603032466,-1109.48,0.00020692,2]
[345986611,1734603032475,-650.0,0.00021,2]
[345986612,1734603032485,-2077.6667,0.0002168,2]
[345986613,1734603032494,-500.0,0.00021917,2]
[345986614,1734603032505,-500.0,0.00021917,2]
[345986615,1734603032515,-421.0,0.00022,10]
[345986616,1734603032525,-1032.295,0.00022045,2]
[345986617,1734603032534,-150.0,0.00022045,2]
[345986618,1734603032544,-3880.0,0.00022045,2]
[345986619,1734603032554,-510.32780701,0.00022145,4]
[345986620,1734603032564,-275.83018898,0.00022145,4]
[345986621,1734603032574,-500.0,0.00022145,4]
[345986622,1734603032583,-500.0,0.00022145,4]
[345986623,1734603032593,-500.0,0.00022145,4]
[345986624,1734603032605,-106.02375371,0.00022145,4]
[345986625,1734603032618,-393.97624629,0.00022145,4]
[345986626,1734603032628,-293.65558459,0.00022145,4]
[345986627,1734603032649,-206.34441541,0.00022145,4]
[345986628,1734603032658,-510.99500093,0.00022145,4]
[345986629,1734603032668,-500.0,0.00022145,4]
[345986630,1734603032682,-495.84299681,0.00022145,4]
[345986631,1734603032691,-236.81758685,0.00022145,4]
[345986632,1734603032703,-263.18241315,0.00022145,4]
[345986633,1734603032712,-500.0,0.00022145,4]
[345986634,1734603032722,-500.0,0.00022145,4]
[345986635,1734603032732,-312.56313623,0.00022145,4]
[345986636,1734603032743,-63.04824908,0.00022145,4]
[345986637,1734603032753,-279.47934292,0.00022145,4]
[345986638,1734603032764,-220.52065708,0.00022145,4]
[345986639,1734603032774,-500.0,0.00022145,4]
[345986640,1734603032783,-298.07934292,0.00022191,2]
[345986641,1734603032795,-201.92065708,0.00022191,2]
[345986642,1734603032804,-500.0,0.00022191,2]
[345986643,1734603032814,-104.43379354,0.0002226,2]
[345986644,1734603032826,-395.56620646,0.0002226,2]
[345986645,1734603032835,-147.90012054,0.0002235,2]
[345986646,1734603032847,-27.87553836,0.0002235,2]
[345986647,1734603032856,-150.0,0.00022445,2]
[345986648,1734603032865,-1264.0,0.00022445,2]
[345986649,1734603032874,-150.0,0.00022445,2]
[345986650,1734603032884,-584.21565447,0.00022445,2]
[345986651,1734603032899,-988.01634553,0.00022445,2]
[345986652,1734603032909,-11.97565447,0.00022445,2]
[345986653,1734603032921,-915.02434553,0.00022445,2]
[345986654,1734603032935,-1253.0,0.00022445,2]
[345986655,1734603032945,-3764.0,0.00022445,2]
[345986656,1734603032955,-774.45712799,0.00022445,2]
[345986679,1734603040776,-800.0,0.00020068,2]
[345986680,1734603040785,-43.54287201,0.00022445,2]
[345986681,1734603040794,-802.602,0.00022445,2]
[345986682,1734603040803,-535.0,0.00022445,2]
[345986683,1734603040812,-500.0,0.00022465,2]
[345986684,1734603040821,-500.0,0.00022465,2]
[345986685,1734603040830,-150.0,0.00022488,4]
[345986686,1734603040839,-478.27,0.00022522,2]
[345986687,1734603040848,-194.75,0.00022534,2]
[345986688,1734603041043,-400.0,0.00022578,2]
[345986689,1734603041053,-1000.0,0.00022622,2]
[345986690,1734603041063,-500.0,0.00022644,2]
[345986691,1734603041072,-250.0,0.00022668,2]
[345986692,1734603041083,-500.0,0.00022679,2]
[345986693,1734603041093,-500.0,0.00022679,2]
[345986694,1734603041103,-3.9001682,0.00022685,2]
[345986696,1734603043376,-181.57594021,0.00021164,2]
[345986700,1734603046573,-618.42405979,0.00021164,2]
[345986701,1734603046583,-800.0,0.0002226,2]
[345986702,1734603046593,-229.4598318,0.00022685,2]
[345986703,1734603046602,-1000.0,0.00022699,2]
[345986704,1734603046615,-676.06,0.00022711,2]
[345986705,1734603046625,-3693.87889489,0.00022714,2]
[345986706,1734603046723,-3575.35447531,0.00022714,2]
[345986707,1734603046733,-500.0,0.00022739,2]
[345986708,1734603046742,-500.0,0.00022739,2]
[345986709,1734603046752,-315.545,0.00022944,2]
[345986710,1734603046762,-1109.48,0.00022956,2]
[345986711,1734603046772,-250.0,0.00022971,2]
[345986712,1734603046782,-500.0,0.00023013,2]
[345986713,1734603046791,-500.0,0.00023013,2]
[345986714,1734603046801,-1000.0,0.00023192,2]
[345986715,1734603046810,-500.0,0.00023287,2]
[345986716,1734603046820,-500.0,0.00023287,2]
[345986717,1734603046829,-800.0,0.00023356,2]
[345986718,1734603046838,-170.59,0.00023396,2]
[345986719,1734603046848,-400.0,0.00023413,2]
[345986720,1734603046858,-500.0,0.00023561,2]
[345986721,1734603046867,-500.0,0.00023561,2]
[345986722,1734603046876,-266.845091,0.00023623,2]
[345986723,1734603046886,-404.561,0.0002375,2]
[345986724,1734603046896,-152.0,0.00023793,3]
[345986725,1734603046906,-3000.0,0.000238,2]
[345986726,1734603046916,-500.0,0.00023835,2]
[345986727,1734603046926,-500.0,0.00023835,2]
[345986728,1734603046941,-150.0,0.00023903,2]
[345986729,1734603046950,-10000.0,0.00024,2]